bitfinex/quotes_ETHUSD_20251031
["timestamp","ask_amount","ask_price","bid_price","bid_amount"]
[1761935070819,0.0261654,3834.6,3834.2,2.60806536]
[1761935071021,0.5089654,3834.6,3834.3,0.405504]
[1761935071392,0.456,3834.4,3834.2,0.405504]
[1761935071590,0.5089654,3834.6,3833.9,0.002]
[1761935071591,0.456,3834.3,3833.9,0.002]
[1761935071775,0.3719,3834.0,3833.9,0.002]
[1761935071978,0.8547,3834.0,3833.9,0.002]
[1761935072176,0.8547,3834.0,3833.9,0.407504]
[1761935072374,0.8547,3834.0,3833.9,2.61031007]
[1761935072883,0.8547,3834.0,3833.9,3.01581407]
[1761935073109,0.3719,3834.0,3833.9,3.01581407]
[1761935073475,0.011,3834.7,3834.5,2.60789244]
[1761935073677,0.011,3834.7,3834.6,3.01333793]
[1761935074076,0.9498,3834.7,3834.6,3.01333793]
[1761935074271,0.467,3834.7,3834.6,3.01333793]
[1761935074691,0.9498,3834.7,3834.6,3.01333793]
[1761935076908,0.9498,3834.7,3834.6,0.405504]
[1761935077115,0.9498,3834.7,3834.6,3.01333793]
[1761935078512,0.9498,3834.7,3834.6,0.405504]
[1761935081163,0.9498,3834.7,3834.0,2.60824204]
[1761935081359,0.456,3834.1,3834.0,2.60824204]
[1761935081847,0.9388,3834.1,3834.0,3.01374604]
[1761935083177,0.456,3834.1,3834.0,3.01374604]
[1761935083483,0.9388,3834.1,3834.0,3.01374604]
[1761935084146,0.456,3834.1,3834.0,3.01374604]
[1761935084770,0.9388,3834.1,3834.0,3.01374604]
[1761935085448,0.9388,3834.1,3834.0,0.405504]
[1761935086050,0.1304,3834.0,3833.9,0.002]
[1761935086348,0.9968654,3834.0,3833.9,0.002]
[1761935086601,0.9707,3834.0,3833.9,0.002]
[1761935090976,4.017048,3834.0,3833.9,0.002]
[1761935091193,4.7083397,3834.0,3833.9,0.002]
[1761935091755,1.6619917,3834.0,3833.9,0.002]
[1761935091954,0.9968654,3834.0,3833.9,0.002]
[1761935092189,0.9707,3834.0,3833.9,0.002]
[1761935097161,0.8403,3834.0,3833.9,0.002]
[1761935097372,4.614639,3834.0,3833.9,0.002]
[1761935097782,4.6408044,3834.0,3833.9,0.002]
[1761935097996,5.36568874,3834.0,3833.9,0.002]
[1761935098201,5.33952334,3834.0,3833.9,0.002]
[1761935098712,1.56518434,3834.0,3833.9,0.002]
[1761935099012,0.8403,3834.0,3833.9,0.002]
[1761935099574,0.3719,3834.0,3833.9,0.002]
[1761935099776,0.8403,3834.0,3833.9,0.002]
[1761935100403,0.3719,3834.0,3833.9,0.002]
[1761935100616,0.3719,3834.0,3833.9,3.01581407]
[1761935100820,0.42025791,3834.7,3834.1,0.405504]
[1761935100821,0.011,3834.7,3834.1,0.405504]
[1761935100981,0.011,3834.7,3834.6,0.405504]
[1761935101177,0.0371654,3834.7,3834.6,0.405504]
[1761935101376,0.9925654,3834.7,3833.9,0.002]
[1761935101658,0.3555,3834.0,3833.9,0.002]
[1761935101978,0.3555,3834.0,3833.9,3.01581407]
[1761935102184,0.0261654,3834.3,3834.0,0.405504]
[1761935102602,0.487,3834.1,3834.0,0.405504]
[1761935102814,0.011,3834.7,3834.2,2.60808786]
[1761935103030,0.4945654,3834.6,3834.1,0.405504]
[1761935103314,0.4684,3834.6,3834.0,0.405504]
[1761935103480,0.0261654,3834.5,3834.0,3.01369796]
[1761935103679,0.0261654,3834.5,3834.2,0.405504]
[1761935103921,0.011,3834.7,3834.4,0.405504]
[1761935104227,0.0261654,3834.6,3834.4,0.405504]
[1761935104379,0.0261654,3834.6,3834.1,0.16358174]
[1761935104380,0.487,3834.5,3834.3,0.405504]
[1761935104830,0.3555,3834.4,3833.9,0.002]
[1761935105026,0.3555,3834.4,3834.2,0.405504]
[1761935105313,0.0261654,3834.3,3834.2,0.405504]
[1761935105553,0.5118654,3834.3,3834.0,3.01373951]
[1761935105762,0.0261654,3834.3,3834.1,2.60816309]
[1761935106057,0.4684,3834.5,3834.2,0.405504]
[1761935106223,0.0261654,3834.4,3834.1,0.405504]
[1761935106640,0.487,3834.2,3834.1,0.405504]
[1761935107156,0.1304,3834.3,3834.1,0.405504]
[1761935107318,0.9815654,3834.2,3833.9,0.002]
[1761935107520,0.3555,3834.0,3833.9,0.002]
[1761935108058,0.8500654,3834.0,3833.9,0.002]
[1761935108360,0.8239,3834.0,3833.9,0.002]
[1761935110756,0.001,3834.3,3834.2,3.01360999]
[1761935111056,0.001,3834.3,3834.2,3.47510999]
[1761935111417,0.001,3834.3,3834.2,3.01360999]
[1761935112158,0.001,3834.3,3834.2,2.60810599]
[1761935112523,0.41005395,3834.3,3834.2,3.01360999]
[1761935112725,0.54045395,3834.3,3834.2,4.0374943]
[1761935113187,0.1314,3834.3,3834.2,4.0374943]
[1761935113380,0.1314,3834.3,3834.2,0.96788831]
[1761935113381,0.6184,3834.3,3834.2,0.96788831]
[1761935113552,0.1314,3834.3,3834.2,3.5759943]
[1761935113875,0.1314,3834.3,3834.2,4.0374943]
[1761935115176,0.001,3834.3,3834.2,5.8986743]
[1761935115376,0.001,3834.3,3834.2,6.0290743]
[1761935115879,0.001,3834.3,3834.2,5.6235703]
[1761935116174,0.001,3834.3,3834.2,6.0290743]
[1761935118705,0.4642,3834.3,3834.2,3.14400999]
[1761935119003,0.001,3834.3,3834.2,2.60810599]
[1761935119147,0.001,3834.3,3834.2,3.06960599]
[1761935119354,0.001,3834.3,3834.2,3.47510999]
[1761935119661,0.001,3834.3,3834.2,4.11043516]
[1761935121220,0.001,3834.3,3834.2,3.01360999]
[1761935121418,0.4649,3834.3,3834.2,3.01360999]
[1761935121920,0.9373,3834.3,3834.2,3.01360999]
[1761935122400,0.4649,3834.3,3834.2,3.01360999]
[1761935122867,0.001,3834.3,3834.2,3.47390999]
[1761935123067,0.001,3834.3,3834.2,4.23604316]
[1761935124069,0.001,3834.3,3834.2,3.77574316]
[1761935125276,0.001,3834.3,3834.2,9.09125957]
[1761935125824,0.9373,3834.3,3834.2,0.405504]
[1761935125971,1.0677,3834.3,3834.2,2.60810599]
[1761935126277,1.0677,3834.3,3833.9,0.002]
[1761935126483,0.5023,3834.0,3833.9,2.61028339]
[1761935126683,0.5023,3834.0,3833.9,3.01578739]
[1761935126881,0.9747,3834.0,3833.9,3.01578739]
[1761935127683,0.9747,3834.0,3833.9,0.407504]
[1761935127887,0.9747,3834.0,3833.9,3.01581407]
[1761935128286,0.1304,3834.0,3833.9,3.01581407]
[1761935128486,0.5943,3834.0,3833.9,3.01581407]
[1761935128696,1.0667,3834.0,3833.9,0.407504]
[1761935128918,0.1304,3834.0,3833.9,3.01581407]
[1761935130115,1.0667,3834.0,3833.9,0.407504]
[1761935130803,0.5943,3834.0,3833.9,0.407504]
[1761935131001,1.0667,3834.0,3833.9,0.407504]
[1761935133422,0.5943,3834.0,3833.9,3.01581407]
[1761935133604,0.1304,3834.0,3833.9,3.01581407]
[1761935133944,0.001,3834.3,3834.2,3.01360999]
[1761935134096,0.001,3834.3,3834.2,0.405504]
[1761935134297,0.9634654,3834.3,3834.1,2.60811699]
[1761935134538,0.3719,3834.2,3834.1,3.01362099]
[1761935135044,0.3719,3834.2,3834.1,0.405504]
[1761935135222,0.8443,3834.2,3834.1,0.405504]
[1761935135422,0.8443,3834.2,3833.9,0.002]
[1761935135658,0.001,3834.3,3833.9,0.002]
[1761935135659,0.4629,3834.0,3833.9,0.002]
[1761935136157,0.9353,3834.0,3833.9,0.002]
[1761935137568,0.4629,3834.0,3833.9,0.002]
[1761935137770,0.4639,3834.0,3833.9,3.01581407]
[1761935137940,0.4639,3834.0,3833.9,0.407504]
[1761935138136,0.9363,3834.0,3833.9,0.407504]
[1761935138540,0.9363,3834.0,3833.9,3.01581407]
[1761935138752,0.40909385,3834.1,3834.0,3.01374604]
[1761935138953,0.40909385,3834.1,3834.0,3.47404604]
[1761935138954,0.53949385,3834.1,3834.0,3.47404604]
[1761935139458,0.40909385,3834.1,3834.0,3.47404604]
[1761935139643,0.40909385,3834.1,3834.0,3.93554604]
[1761935140376,0.40909385,3834.1,3834.0,3.47404604]
[1761935140525,0.87299385,3834.1,3834.0,3.75910192]
[1761935140725,0.40909385,3834.1,3834.0,3.75910192]
[1761935141079,0.001,3834.3,3834.2,2.60810599]
[1761935141248,0.001,3834.3,3834.2,3.01360999]
[1761935141428,0.9373,3834.3,3834.2,0.405504]
[1761935142128,0.4649,3834.3,3834.2,0.405504]
[1761935142324,0.9373,3834.3,3834.2,0.405504]
[1761935142568,0.4649,3834.3,3834.2,0.405504]
[1761935143141,0.9373,3834.3,3834.2,0.405504]
[1761935143345,0.9373,3834.3,3833.9,0.002]
[1761935143664,0.4639,3834.0,3833.9,3.01581407]
[1761935144043,0.1314,3834.1,3834.0,3.01374604]
[1761935144894,0.5953,3834.1,3834.0,3.01374604]
[1761935145458,1.0677,3834.1,3834.0,3.01374604]
[1761935145664,0.5953,3834.1,3834.0,3.01374604]
[1761935146663,0.1314,3834.1,3834.0,3.01374604]
[1761935147707,0.582,3834.1,3833.9,0.407504]
[1761935148024,0.385,3834.0,3833.9,0.002]
[1761935148194,0.9100654,3834.0,3833.9,0.407504]
[1761935148920,0.8839,3834.0,3833.9,0.002]
[1761935149116,0.001,3834.1,3834.0,3.01374604]
[1761935150085,0.1314,3834.1,3834.0,3.01374604]
[1761935150503,0.582,3834.1,3834.0,0.405504]
[1761935150703,0.582,3834.1,3834.0,3.01374604]
[1761935152811,0.001,3834.1,3834.0,4.87262604]
[1761935153878,0.001,3834.1,3834.0,4.41342604]
[1761935155327,0.001,3834.1,3834.0,5.15904708]
[1761935155903,0.4516,3834.1,3834.0,5.15904708]
[1761935156105,0.4516,3834.1,3834.0,3.01374604]
[1761935156389,0.9505,3834.1,3834.0,3.01374604]
[1761935157327,0.9505,3834.1,3834.0,0.405504]
[1761935157522,0.9505,3834.1,3834.0,3.01374604]
[1761935158246,0.4516,3834.1,3834.0,3.01374604]
[1761935160748,0.4516,3834.1,3834.0,0.405504]
[1761935160948,0.9505,3834.1,3834.0,0.405504]
[1761935161719,0.9505,3834.1,3834.0,3.01374604]
[1761935162155,0.9505,3834.1,3834.0,0.405504]
[1761935162849,1.0809,3834.1,3834.0,0.405504]
[1761935163982,1.0809,3834.1,3834.0,3.01374604]
[1761935164139,0.582,3834.1,3834.0,3.01374604]
[1761935164554,1.0809,3834.1,3834.0,0.405504]
[1761935164754,1.0809,3834.1,3833.9,0.002]
[1761935164963,0.8838654,3834.0,3833.9,0.002]
[1761935165740,0.1314,3834.1,3833.9,2.61031007]
[1761935166072,0.1314,3834.1,3833.9,0.002]
[1761935166278,0.9756654,3834.0,3833.9,0.002]
[1761935168493,0.9756654,3834.0,3833.9,2.61031007]
[1761935168652,0.9756654,3834.0,3833.9,0.002]
[1761935175103,0.1314,3834.1,3833.9,0.002]
[1761935175304,0.1314,3834.1,3834.0,2.60824204]
[1761935175679,0.582,3834.1,3833.9,2.61028484]
[1761935176084,0.001,3834.1,3834.0,3.47294604]
[1761935176269,0.1314,3834.1,3834.0,3.47294604]
[1761935179687,0.6137,3834.1,3833.9,0.002]
[1761935179893,0.3492,3834.0,3833.9,0.002]
[1761935180123,0.3492,3834.0,3833.9,3.01577222]
[1761935180307,0.1314,3834.1,3834.0,3.01374604]
[1761935180612,0.4823,3834.0,3833.9,0.002]
[1761935180788,0.5084654,3834.0,3833.9,0.002]
[1761935180989,0.9853654,3834.0,3833.9,0.002]
[1761935182302,0.5084654,3834.0,3833.9,2.61031007]
[1761935182504,0.1314,3834.1,3833.9,2.61031007]
[1761935182505,0.1314,3834.1,3833.9,3.07176938]
[1761935182704,0.0261654,3834.0,3833.9,3.01577338]
[1761935183611,0.5151654,3834.0,3833.9,3.01577338]
[1761935183922,0.5151654,3834.0,3833.9,3.01581407]
[1761935184283,0.0261654,3834.0,3833.9,3.01581407]
[1761935184623,0.0261654,3834.0,3833.9,3.47731407]
[1761935185719,0.1314,3834.1,3834.0,2.60824204]
[1761935186183,0.6204,3834.1,3834.0,2.60824204]
[1761935186587,0.1314,3834.1,3834.0,2.60824204]
[1761935187233,0.6204,3834.1,3834.0,2.60824204]
[1761935187736,0.1314,3834.1,3834.0,3.47524604]
[1761935187908,0.1314,3834.1,3834.0,5.18936273]
[1761935187909,0.001,3834.1,3834.0,5.18936273]
[1761935188432,0.001,3834.1,3834.0,4.72786273]
[1761935188613,0.53708051,3834.4,3834.3,3.01354197]
[1761935189239,0.0460111,3834.4,3834.3,3.01354197]
[1761935189410,0.001,3834.5,3834.4,3.01347395]
[1761935189741,0.001,3834.5,3834.4,3.47497395]
[1761935190037,0.001,3834.5,3834.4,3.50105364]
[1761935190798,0.001,3834.5,3834.4,3.96255364]
[1761935190999,0.001,3834.5,3834.4,5.50745612]
[1761935191316,0.001,3834.5,3834.4,5.48137643]
[1761935192420,0.001,3834.5,3834.4,5.01987643]
[1761935192814,0.9661,3834.5,3834.4,3.01347395]
[1761935193111,0.9661,3834.5,3834.0,5.31498278]
[1761935193112,0.6196,3834.5,3834.0,5.31498278]
[1761935193338,0.6196,3834.5,3834.4,3.01347395]
[1761935193547,0.3452,3834.0,3833.9,0.1324]
[1761935193750,0.4761,3834.4,3833.9,0.002]
[1761935193956,0.0261654,3834.3,3834.2,0.405504]
[1761935194249,0.4761,3834.4,3834.2,0.405504]
[1761935194414,0.5151654,3834.3,3834.2,0.405504]
[1761935194744,0.5151654,3834.3,3833.9,0.407504]
[1761935194947,0.8213,3834.2,3833.9,3.01576277]
[1761935195133,0.8213,3834.2,3834.1,0.405504]
[1761935195311,0.4761,3834.1,3833.9,0.002]
[1761935195513,0.3452,3834.0,3833.9,0.002]
[1761935196060,0.8213,3834.0,3833.9,0.002]
[1761935196836,19.151311,3834.0,3833.9,0.002]
[1761935197043,24.93436835,3834.0,3833.9,0.002]
[1761935197250,25.86850811,3834.0,3833.9,0.002]
[1761935197434,2.60878639,3833.2,3833.1,0.002]
[1761935197662,2.60878639,3833.2,3832.6,0.002]
[1761935197663,21.369744,3833.0,3832.6,0.002]
[1761935197953,13.133196,3832.7,3832.6,0.002]
[1761935198118,6.288644,3832.7,3832.6,0.002]
[1761935198320,7.3936084,3832.7,3832.6,0.002]
[1761935198516,11.40241512,3832.7,3832.6,0.002]
[1761935198755,36.35650527,3832.7,3832.6,0.002]
[1761935198958,37.92431374,3832.4,3831.9,0.002]
[1761935199168,32.60939905,3832.3,3831.9,0.002]
[1761935199322,4.00914714,3832.2,3831.9,0.002]
[1761935199542,7.68934615,3832.2,3831.9,0.002]
[1761935199746,2.35948,3832.2,3831.9,0.002]
[1761935199942,5.83714675,3832.2,3831.9,0.002]
[1761935200151,4.600045,3832.2,3831.9,0.002]
[1761935200364,5.00943,3832.2,3831.9,0.002]
[1761935200875,1.369185,3832.2,3831.9,0.002]
[1761935201079,0.409385,3832.2,3832.1,5.32498278]
[1761935201483,0.1934,3832.7,3832.1,3.09297506]
[1761935201643,0.0261654,3832.6,3832.1,0.4835]
[1761935201841,0.489,3832.2,3832.1,0.01]
[1761935202044,0.5022654,3832.6,3832.1,0.01]
[1761935203881,0.489,3832.2,3832.1,0.01]
[1761935204279,0.5022654,3832.6,3832.1,0.01]
[1761935204479,0.1934,3832.9,3832.1,0.631]
[1761935204781,0.0261654,3832.8,3832.1,3.24052181]
[1761935204942,0.1934,3832.9,3832.4,2.60932731]
[1761935205146,0.1934,3832.9,3832.1,3.24053434]
[1761935205147,0.1304,3832.3,3832.2,3.01494846]
[1761935205399,0.1934,3832.9,3832.2,3.45464664]
[1761935205563,0.0261654,3832.8,3832.5,2.60924169]
[1761935205952,0.1304,3832.5,3832.3,0.02609399]
[1761935206148,0.1304,3832.5,3832.4,3.1612791]
[1761935206450,0.1304,3832.5,3832.4,1.02546415]
[1761935206657,0.1304,3832.5,3832.4,3.48833496]
[1761935206876,0.1304,3832.5,3832.4,3.96183496]
[1761935207698,0.1304,3832.5,3832.4,3.48833496]
[1761935207900,0.6214,3832.5,3832.1,0.01]
[1761935208097,0.1304,3832.3,3832.2,0.405504]
[1761935208463,0.1304,3832.3,3832.1,0.415504]
[1761935209385,0.1304,3832.3,3832.1,0.01]
[1761935209787,0.1304,3832.3,3832.2,3.01497114]
[1761935210197,0.1304,3832.3,3832.2,0.405504]
[1761935210998,0.1304,3832.3,3832.2,3.01497114]
[1761935211499,0.1304,3832.3,3832.2,3.48847114]
[1761935212484,0.1304,3832.3,3832.2,4.14665455]
[1761935212662,0.1304,3832.3,3832.2,4.62015455]
[1761935213767,0.1304,3832.3,3832.2,4.14665455]
[1761935214780,0.0261654,3832.9,3832.5,3.01475963]
[1761935214963,0.60266646,3833.2,3832.7,2.6091067]
[1761935215291,1.07236646,3833.2,3832.7,2.6091067]
[1761935216002,1.07236646,3833.2,3832.6,2.60917591]
[1761935216186,0.0261654,3833.1,3832.5,2.60924373]
[1761935216396,0.1304,3832.5,3832.4,1.00817046]
[1761935216762,0.1304,3832.5,3832.4,1.95517046]
[1761935216981,0.1304,3832.5,3832.4,2.49580304]
[1761935217163,0.1304,3832.5,3832.4,5.105134]
[1761935217368,0.1304,3833.0,3832.9,0.405504]
[1761935217815,0.1304,3833.0,3832.2,2.60944791]
[1761935217816,1.0911,3833.0,3832.2,2.60944791]
[1761935218120,0.0261654,3832.9,3832.5,0.4697]
[1761935218352,0.4958654,3832.9,3832.5,0.4697]
[1761935218604,0.491,3832.6,3832.5,0.4697]
[1761935218812,0.1304,3832.5,3832.1,3.02503581]
[1761935218983,0.1304,3832.3,3832.1,3.02503581]
[1761935219299,0.1304,3832.3,3832.2,0.9013694]
[1761935219597,0.6214,3832.3,3832.2,0.9013694]
[1761935221904,0.6214,3832.3,3832.1,0.01]
[1761935221905,1.0911,3832.3,3832.1,0.01]
[1761935222120,0.9864654,3832.2,3832.1,0.01]
[1761935222633,0.5167654,3832.2,3832.1,3.02503924]
[1761935222832,0.5167654,3832.2,3832.1,0.415504]
[1761935223035,0.5167654,3832.2,3832.1,0.01]
[1761935223384,0.9864654,3832.2,3832.1,0.01]
[1761935224020,0.5167654,3832.2,3832.1,0.01]
[1761935225106,0.5171654,3832.2,3832.1,0.01]
[1761935225501,0.9868654,3832.2,3832.1,0.01]
[1761935227599,7.48809271,3833.1,3832.1,0.01]
[1761935227600,0.1304,3832.3,3832.2,3.01493084]
[1761935227932,0.0261654,3833.0,3832.7,2.60911952]
[1761935228106,1.03272159,3833.3,3832.7,2.60911989]
[1761935228107,0.0261654,3833.2,3832.7,2.60911989]
[1761935228497,0.4697,3833.2,3832.6,7.4884059]
[1761935228701,0.0261654,3833.1,3832.6,4.87923127]
[1761935228918,0.0261654,3833.1,3832.6,0.405504]
[1761935229238,0.4958654,3833.1,3832.6,0.405504]
[1761935229599,0.4958654,3833.1,3832.6,2.60919347]
[1761935229999,0.001,3832.7,3832.6,3.01469747]
[1761935230200,0.001,3832.7,3832.6,8.9768016]
[1761935230427,0.001,3832.7,3832.6,7.89393007]
[1761935230631,0.001,3832.7,3832.6,5.75823527]
[1761935230843,0.001,3832.7,3832.6,8.36743007]
[1761935231333,0.1314,3832.7,3832.6,8.36743007]
[1761935231709,0.1314,3832.7,3832.6,8.84093007]
[1761935232135,0.001,3832.7,3832.6,10.03292565]
[1761935232541,0.001,3832.7,3832.6,11.43260565]
[1761935238675,0.001,3832.7,3832.6,11.53715361]
[1761935240261,0.001,3833.1,3832.6,11.53715361]
[1761935240262,0.001,3833.1,3833.0,3.01442651]
[1761935240426,0.001,3833.1,3833.0,15.37448159]
[1761935240652,0.001,3833.1,3833.0,15.82189237]
[1761935241668,0.001,3833.1,3833.0,10.9426611]
[1761935241866,0.001,3833.1,3833.0,15.82189237]
[1761935242067,0.41011776,3834.5,3833.9,7.89304534]
[1761935242270,0.41011776,3834.5,3833.9,8.36654534]
[1761935242769,0.1304,3834.2,3833.9,8.7766631]
[1761935243468,0.1304,3834.2,3833.9,8.3031631]
[1761935243839,0.1304,3834.2,3833.9,8.7766631]
[1761935244469,0.1304,3834.2,3833.9,8.3031631]
[1761935244773,0.1304,3834.2,3833.9,8.7766631]
[1761935245173,0.1304,3834.2,3833.9,8.3031631]
[1761935249273,0.4969,3834.0,3833.9,8.3031631]
[1761935249475,0.4969,3834.0,3833.9,3.42393183]
[1761935250051,0.9574,3834.0,3833.9,0.81562176]
[1761935250458,0.9574,3834.0,3833.9,3.42393183]
[1761935250658,0.9574,3834.0,3833.9,0.81562176]
[1761935251985,0.9574,3834.0,3833.9,3.42393183]
[1761935253888,0.001,3834.0,3833.9,3.89743183]
[1761935254060,0.9574,3834.0,3833.2,0.405504]
[1761935254260,0.1304,3833.8,3833.6,0.1304]
[1761935254481,1.0411654,3833.9,3833.6,0.1304]
[1761935254654,0.1304,3833.6,3833.2,0.405504]
[1761935254991,0.1304,3833.6,3833.5,3.01408623]
[1761935255183,0.9564,3833.6,3833.5,3.01408623]
[1761935256370,0.9564,3833.6,3833.5,0.405504]
[1761935256692,0.001,3834.0,3833.9,3.01381407]
[1761935256993,0.1314,3834.0,3833.9,8.99475709]
[1761935257495,0.6273,3834.0,3833.9,8.99475709]
[1761935258071,0.1314,3834.0,3833.9,9.46825709]
[1761935258289,0.001,3834.0,3833.9,10.62857653]
[1761935259998,0.001,3834.0,3833.9,12.15865653]
[1761935260887,0.001,3834.0,3833.9,12.63215653]
[1761935262275,0.001,3834.0,3833.9,12.15865653]
[1761935262677,0.4969,3834.0,3833.9,2.96550344]
[1761935262884,0.4969,3834.0,3833.9,4.41349407]
[1761935263718,0.001,3834.0,3833.9,4.88699407]
[1761935263919,0.001,3834.0,3833.9,1.805184]
[1761935263920,0.4969,3834.0,3833.9,1.805184]
[1761935264210,0.9574,3834.0,3833.9,0.405504]
[1761935264422,0.9574,3834.0,3833.4,2.60860772]
[1761935264625,0.9574,3834.0,3832.8,5.98094302]
[1761935264626,0.1304,3833.6,3832.8,5.98094302]
[1761935264774,0.1304,3833.6,3832.9,1.53008]
[1761935264982,0.1304,3833.6,3832.9,0.1304]
[1761935264983,0.4959,3833.1,3832.9,0.1304]
[1761935265177,0.4959,3833.1,3832.4,0.1304]
[1761935265418,2.691331,3833.0,3832.2,0.002]
[1761935265715,0.4945,3832.3,3832.2,0.002]
[1761935266212,0.955,3832.3,3832.2,0.002]
[1761935268597,0.9811654,3832.3,3832.2,0.002]
[1761935268828,0.955,3832.3,3832.2,0.002]
[1761935273417,12.9853914,3832.3,3832.2,0.002]
[1761935273620,14.65866111,3832.3,3832.2,0.002]
[1761935274035,12.32738811,3832.3,3832.2,0.002]
[1761935274220,2.65443511,3832.3,3832.2,0.002]
[1761935274533,3.4111784,3832.3,3832.2,0.002]
[1761935275107,0.9811654,3832.3,3832.2,0.002]
[1761935275310,0.955,3832.3,3832.2,0.002]
[1761935276317,0.9811654,3832.3,3832.2,0.002]
[1761935277658,0.5206654,3832.3,3832.2,0.002]
[1761935277865,0.4945,3832.3,3832.2,0.002]
[1761935278010,0.9449,3832.3,3832.2,0.002]
[1761935280646,1.46906069,3832.3,3832.2,0.002]
[1761935280834,10.2294074,3832.3,3832.2,0.002]
[1761935281150,5.285319,3832.3,3832.2,0.002]
[1761935281714,34.95397905,3832.3,3832.2,0.002]
[1761935282153,35.05860577,3832.3,3832.2,0.002]
[1761935282372,37.67011731,3832.3,3832.2,0.002]
[1761935282676,7.31327754,3832.3,3832.2,0.002]
[1761935282826,4.546621,3832.3,3832.2,0.002]
[1761935283027,7.15602005,3832.3,3832.2,0.002]
[1761935283249,7.56540743,3832.3,3832.2,0.002]
[1761935283841,20.49758643,3832.3,3832.2,0.002]
[1761935284763,35.36336643,3832.3,3832.2,0.002]
[1761935285061,37.97487797,3832.3,3832.2,0.002]
[1761935286560,32.22231897,3832.3,3832.2,0.002]
[1761935286930,37.97487797,3832.3,3832.2,0.002]
[1761935287475,38.07950661,3832.3,3832.2,0.002]
[1761935287839,8.07950661,3832.3,3832.2,0.002]
[1761935288037,38.07950661,3832.3,3832.2,0.002]
[1761935288464,38.48904259,3832.3,3832.2,0.002]
[1761935288737,38.07950661,3832.3,3832.2,0.002]
[1761935289633,38.63883107,3832.3,3832.2,0.002]
[1761935290048,39.04433507,3832.3,3832.2,0.002]
[1761935290343,35.84246978,3832.2,3832.1,1e-08]
[1761935290551,35.84246978,3832.2,3831.8,1e-08]
[1761935290552,4.81545544,3831.9,3831.8,1e-08]
[1761935290744,42.74103754,3831.9,3831.8,1e-08]
[1761935290963,45.77678368,3831.9,3831.8,1e-08]
[1761935291887,46.18640043,3831.9,3831.8,1e-08]
[1761935292089,48.5381244,3831.9,3831.8,1e-08]
[1761935292370,49.58200013,3831.9,3831.8,1e-08]
[1761935293045,34.85539165,3831.7,3831.6,1e-08]
[1761935293239,35.4156267,3831.7,3831.6,1e-08]
[1761935293443,35.8660267,3831.7,3831.6,1e-08]
[1761935293771,36.27554335,3831.7,3831.6,1e-08]
[1761935295071,39.32684327,3831.7,3831.6,1e-08]
[1761935295396,38.48155089,3831.7,3831.6,1e-08]
[1761935295672,35.74364089,3831.7,3831.6,1e-08]
[1761935296079,44.84155089,3831.7,3831.6,1e-08]
[1761935296576,36.03160928,3831.7,3831.6,1e-08]
[1761935296775,36.49617289,3831.7,3831.6,1e-08]
[1761935297179,44.84155089,3831.7,3831.6,1e-08]
[1761935297390,44.15881789,3831.7,3831.6,1e-08]
[1761935298187,44.84155089,3831.7,3831.6,1e-08]
[1761935298488,38.13627789,3831.7,3831.6,1e-08]
[1761935299054,44.84155089,3831.7,3831.6,1e-08]
[1761935299266,45.77666728,3831.7,3831.6,1e-08]
[1761935300271,40.56958228,3831.7,3831.6,1e-08]
[1761935300596,35.11248189,3831.7,3831.6,1e-08]
[1761935301064,36.26328389,3831.7,3831.6,1e-08]
[1761935301265,35.28172289,3831.7,3831.6,1e-08]
[1761935301465,34.73264389,3831.7,3831.6,1e-08]
[1761935301863,37.48364389,3831.7,3831.6,1e-08]
[1761935302063,21.39262524,3831.7,3831.6,1e-08]
[1761935302286,25.86021289,3831.7,3831.6,1e-08]
[1761935302893,26.33421289,3831.7,3831.6,1e-08]
[1761935303084,29.03924989,3831.7,3831.6,1e-08]
[1761935303295,28.77779089,3831.7,3831.6,1e-08]
[1761935303623,29.71290728,3831.7,3831.6,1e-08]
[1761935303901,32.46390728,3831.7,3831.6,1e-08]
[1761935304122,48.97856453,3831.7,3831.6,1e-08]
[1761935304419,48.04344814,3831.7,3831.6,1e-08]
[1761935304569,48.98000281,3831.7,3831.6,1e-08]
[1761935305196,44.89095575,3831.6,3831.2,0.002]
[1761935305521,48.80376364,3831.6,3831.2,0.002]
[1761935306116,56.10031831,3831.6,3831.2,0.002]
[1761935307408,55.16376364,3831.6,3831.2,0.002]
[1761935307617,56.56639111,3831.6,3831.2,0.002]
[1761935309070,55.16376364,3831.6,3831.2,0.002]
[1761935309925,56.57092512,3831.6,3831.2,0.002]
[1761935310383,55.16376364,3831.6,3831.2,0.002]
[1761935313134,4.00962388,3831.5,3831.2,0.002]
[1761935313339,44.49863587,3831.5,3831.2,0.002]
[1761935313514,44.47247047,3831.5,3831.2,0.002]
[1761935313714,47.22347047,3831.5,3831.2,0.002]
[1761935315655,55.22347047,3831.5,3831.2,0.002]
[1761935317977,36.891092,3831.4,3831.2,0.002]
[1761935318183,47.38669234,3831.4,3831.2,0.002]
[1761935318980,40.80489989,3831.4,3831.2,0.002]
[1761935319349,40.33089989,3831.4,3831.2,0.002]
[1761935319544,40.20049989,3831.4,3831.2,0.002]
[1761935319867,28.58042489,3831.4,3831.2,0.002]
[1761935320069,14.41471789,3831.4,3831.3,0.4775]
[1761935320287,16.28123746,3831.4,3831.3,0.002]
[1761935320469,16.75523746,3831.4,3831.3,0.002]
[1761935320787,37.45088646,3831.4,3831.3,0.002]
[1761935320970,36.92774646,3831.4,3831.3,0.002]
[1761935321174,36.86334626,3831.4,3831.3,0.002]
[1761935321374,35.45492669,3831.4,3831.3,0.002]
[1761935321583,35.24792669,3831.4,3831.3,0.002]
[1761935321757,36.62197026,3831.4,3831.3,0.002]
[1761935321957,35.21355069,3831.4,3831.3,0.002]
[1761935322253,32.92703869,3831.4,3831.3,0.002]